bitfinex/quotes_ETHUSD_20250518
["timestamp","ask_amount","ask_price","bid_price","bid_amount"]
[1747536379408,7.48,2479.8,2479.5,0.38535566]
[1747536379720,11.50448466,2479.9,2479.6,0.8271]
[1747536380329,11.50448466,2479.9,2479.6,1.21245566]
[1747536381496,1.5613,2480.2,2479.6,1.21245566]
[1747536381691,13.07329085,2480.2,2479.7,4.41809408]
[1747536382120,4.03215571,2480.1,2479.7,0.38535566]
[1747536382294,4.03215571,2480.1,2479.7,1.36219624]
[1747536382629,4.02773172,2480.1,2479.7,1.36219624]
[1747536383196,4.03233034,2480.0,2479.8,0.38535566]
[1747536383727,4.03242066,2479.9,2479.8,0.38535566]
[1747536384225,13.0722529,2480.2,2479.8,0.38535566]
[1747536384525,9.0403,2480.2,2479.9,0.8131]
[1747536384834,9.0403,2480.2,2480.0,0.48456032]
[1747536385008,13.07225699,2480.2,2480.0,0.48456032]
[1747536385326,13.07225699,2480.2,2479.9,0.8131]
[1747536385327,5.59325283,2480.2,2479.9,0.8131]
[1747536385922,1.5613,2480.2,2479.9,0.8131]
[1747536386123,1.5613,2480.2,2480.0,0.38535566]
[1747536389344,5.59325108,2480.2,2480.0,0.38535566]
[1747536389510,5.59325108,2480.2,2480.0,1.46451285]
[1747536390031,1.5613,2480.2,2480.0,1.46451285]
[1747536390813,1.5613,2480.2,2480.1,0.38535566]
[1747536394046,1.5613,2480.2,2480.1,10.7385612]
[1747536396656,1.5613,2480.2,2480.1,6.70646572]
[1747536396940,1.5613,2480.2,2480.1,7.93649425]
[1747536399469,1.5613,2480.2,2480.1,11.96858973]
[1747536400543,1.5613,2480.2,2480.1,12.45088966]
[1747536400745,1.5613,2480.2,2480.1,21.00088966]
[1747536401841,1.5613,2480.2,2480.1,21.1583632]
[1747536403548,1.5613,2480.2,2480.1,27.45058973]
[1747536403742,1.5613,2480.2,2480.1,27.06523407]
[1747536404319,5.5932329,2480.2,2480.1,6.79063859]
[1747536404525,1.5613,2480.2,2480.1,6.79063859]
[1747536406133,5.5932329,2480.2,2480.1,6.79063859]
[1747536406329,5.5932329,2480.2,2480.0,1.07915719]
[1747536406330,1.5613,2480.2,2480.0,1.07915719]
[1747536409358,1.5613,2480.2,2480.0,5.11137117]
[1747536409756,1.5613,2480.2,2480.1,4.03209548]
[1747536409933,1.5613,2480.2,2480.1,4.072412]
[1747536410137,1.5613,2480.2,2480.1,4.79859548]
[1747536410353,1.5613,2480.2,2480.1,7.14565642]
[1747536410861,1.5613,2480.2,2480.1,3.11356094]
[1747536412260,1.5613,2480.2,2480.1,8.674171]
[1747536414865,1.5613,2480.2,2480.1,9.06014857]
[1747536415071,1.5613,2480.2,2480.1,13.09224405]
[1747536415267,1.5613,2480.2,2480.1,13.64224405]
[1747536417959,1.5613,2480.2,2480.1,16.52714857]
[1747536418138,0.55302721,2480.2,2480.1,9.06014857]
[1747536418338,0.55302721,2480.2,2480.1,16.52714857]
[1747536418542,0.55302721,2480.2,2480.1,17.17075127]
[1747536420765,0.55302721,2480.2,2480.1,8.93725127]
[1747536422165,0.55302721,2480.2,2480.1,8.29364857]
[1747536423741,0.55302721,2480.2,2480.1,9.10804857]
[1747536424075,0.55302721,2480.2,2480.1,13.14014405]
[1747536425982,0.55302721,2480.2,2480.1,13.78374675]
[1747536426376,0.55302721,2480.2,2480.1,22.33374675]
[1747536427859,1.92277986,2481.2,2480.8,4.03081765]
[1747536428192,4.03012412,2481.4,2480.9,4.03075615]
[1747536428408,4.03021146,2481.3,2480.8,4.80988306]
[1747536428571,4.03021146,2481.3,2480.8,7.05005493]
[1747536429594,4.03021146,2481.3,2480.9,0.38597757]
[1747536429798,4.03031576,2481.2,2480.9,0.38597757]
[1747536430099,4.0306328,2481.0,2480.9,0.38597757]
[1747536430295,4.03049953,2481.1,2480.9,0.38597757]
[1747536430954,4.03049953,2481.1,2481.0,0.38597757]
[1747536431496,4.0304324,2481.2,2481.0,0.38597757]
[1747536432391,4.03021184,2481.3,2481.1,0.38597757]
[1747536433903,4.03021184,2481.3,2481.2,0.38597757]
[1747536436504,4.03035316,2481.2,2480.9,5.56061006]
[1747536437002,4.03048256,2481.1,2480.9,5.56061006]
[1747536438079,4.0303922,2481.2,2480.9,5.56061006]
[1747536438669,4.03050439,2481.1,2480.9,5.56061006]
[1747536439088,4.0306328,2481.0,2480.9,5.56061006]
[1747536439394,4.0306328,2481.0,2480.8,0.4821192]
[1747536441713,4.03079527,2480.9,2480.8,0.4821192]
[1747536445693,4.03138365,2480.6,2480.3,5.56061006]
[1747536446093,4.03148373,2480.5,2480.3,5.56061006]
[1747536446781,4.031182,2480.7,2480.4,0.38531278]
[1747536446782,4.03137551,2480.6,2480.4,0.38531278]
[1747536449314,4.03137551,2480.6,2480.5,0.38531278]
[1747536450946,4.03144527,2480.5,2480.4,0.38531278]
[1747536453620,4.0316078,2480.4,2480.3,0.38531278]
[1747536457819,4.03134673,2480.6,2480.3,0.38531278]
[1747536458017,4.03128481,2480.6,2480.3,1.15131278]
[1747536458224,4.03128481,2480.6,2480.3,1.66963566]
[1747536458924,4.03129716,2480.6,2480.3,1.66963566]
[1747536459122,4.03129716,2480.6,2480.4,0.38531278]
[1747536464039,4.03117186,2480.7,2480.4,0.38531278]
[1747536464212,4.03117186,2480.7,2480.4,1.45969778]
[1747536464836,4.03128313,2480.6,2480.4,1.45969778]
[1747536465043,4.03144527,2480.5,2480.4,0.38531278]
[1747536467647,4.03118633,2480.7,2480.4,0.38531278]
[1747536468136,4.03118633,2480.7,2480.5,0.38531278]
[1747536468343,4.03128275,2480.6,2480.5,0.38531278]
[1747536469442,4.0311384,2480.7,2480.5,0.38531278]
[1747536470542,4.0311384,2480.7,2480.6,0.38531278]
[1747536471642,4.03103446,2480.8,2480.6,0.38531278]
[1747536471810,4.03075841,2481.0,2480.6,0.38531278]
[1747536472019,4.03081619,2480.9,2480.6,0.38531278]
[1747536472234,4.03081619,2480.9,2480.6,1.38304171]
[1747536472427,11.46072626,2481.0,2480.6,1.38304171]
[1747536473150,11.46072626,2481.0,2480.7,0.38531278]
[1747536473455,18.91353529,2481.1,2480.7,0.38531278]
[1747536473648,4.03077406,2481.0,2480.7,0.38531278]
[1747536474645,4.03077406,2481.0,2480.8,0.38531278]
[1747536475410,4.03079527,2480.9,2480.8,0.38531278]
[1747536478450,18.84105677,2481.5,2480.8,0.38531278]
[1747536478451,1.28300764,2482.7,2481.5,0.55]
[1747536478657,0.35825013,2483.1,2482.2,0.7697]
[1747536478863,0.35825013,2483.1,2482.5,0.55]
[1747536479017,3.23882074,2483.6,2482.7,0.55]
[1747536479218,4.02723964,2483.1,2482.8,0.7697]
[1747536479415,4.02685133,2483.4,2482.8,1.07883561]
[1747536479644,1.10643649,2483.3,2482.9,0.38531278]
[1747536480047,4.02663581,2483.5,2482.9,0.38531278]
[1747536480247,4.02675143,2483.4,2482.9,0.38531278]
[1747536481526,4.02694699,2483.3,2483.0,0.38531278]
[1747536481717,4.02716548,2483.2,2483.0,0.38531278]
[1747536481923,4.02694699,2483.3,2483.0,0.38531278]
[1747536481924,4.02722403,2483.1,2483.0,0.38531278]
[1747536482766,4.02722403,2483.1,2482.7,0.4821192]
[1747536483559,4.02707259,2483.2,2482.7,0.4821192]
[1747536483560,4.02744453,2483.0,2482.7,0.4821192]
[1747536483770,4.02771064,2482.8,2482.7,0.4821192]
[1747536484261,4.02834622,2482.5,2482.3,2.86994929]
[1747536484459,0.8204,2483.0,2482.3,2.86994929]
[1747536484460,4.02835965,2482.4,2482.3,2.86994929]
[1747536485564,4.02808372,2482.6,2482.3,2.86994929]
[1747536485766,4.02835965,2482.4,2482.3,2.86994929]
[1747536491677,4.0287365,2482.2,2482.0,0.7606]
[1747536491874,4.02837997,2482.4,2482.0,0.7606]
[1747536492041,4.02866928,2482.3,2482.0,0.7606]
[1747536492377,4.0287098,2482.2,2482.0,0.7606]
[1747536492679,15.429,2482.6,2481.9,5.56061006]
[1747536492984,4.02900886,2482.0,2481.9,5.56061006]
[1747536493136,4.02918907,2481.9,2481.7,5.56061006]
[1747536493335,4.02903481,2482.0,2481.7,5.56061006]
[1747536493862,4.02903481,2482.0,2481.7,5.8689215]
[1747536494578,4.02917172,2481.9,2481.7,5.8689215]
[1747536495576,4.02908677,2482.0,2481.7,5.8689215]
[1747536495772,4.02925238,2481.9,2481.7,5.56061006]
[1747536496075,4.02933354,2481.8,2481.7,5.56061006]
[1747536496789,0.8093,2482.5,2481.7,5.56061006]
[1747536496790,4.02900765,2482.1,2481.7,5.56061006]
[1747536496985,4.02867896,2482.3,2481.7,11.40632312]
[1747536497145,4.0284957,2482.4,2481.8,4.0291887]
[1747536497475,4.0284957,2482.4,2481.9,1.57434437]
[1747536497780,4.02851621,2482.4,2481.9,1.57434437]
[1747536497978,4.0286431,2482.3,2482.0,0.38206447]
[1747536498577,4.02884654,2482.1,2482.0,0.38206447]
[1747536499270,4.02884654,2482.1,2481.9,0.38206447]
[1747536499575,4.02900886,2482.0,2481.9,0.38206447]
[1747536499879,4.02888727,2482.1,2481.9,0.38206447]
[1747536500381,4.0284049,2482.4,2481.9,1.01115912]
[1747536500686,0.8093,2482.8,2481.9,1.01115912]
[1747536500687,4.02860167,2482.3,2481.9,1.01115912]
[1747536500986,4.0285329,2482.3,2481.9,1.01115912]
[1747536502682,4.0285329,2482.3,2482.0,0.38206447]
[1747536502881,15.421,2482.5,2482.0,0.38206447]
[1747536503078,4.02870575,2482.2,2482.0,0.38206447]
[1747536504276,4.02870575,2482.2,2482.1,0.38206447]
[1747536508183,4.02870575,2482.2,2482.1,0.60748916]
[1747536509698,4.02860063,2482.3,2482.1,0.60748916]
[1747536510697,4.02860063,2482.3,2482.2,0.22542469]
[1747536511058,4.02852193,2482.3,2482.2,0.60748916]
[1747536514549,4.02844017,2482.4,2482.2,0.60748916]
[1747536514758,19.37215662,2482.6,2482.3,0.22542469]
[1747536515113,4.02828151,2482.5,2482.3,0.22542469]
[1747536515793,4.02828151,2482.5,2482.4,0.60828046]
[1747536521409,11.70704994,2482.6,2482.4,0.60828046]
[1747536521920,0.8056,2483.1,2482.5,4.25441337]
[1747536522062,0.8056,2483.5,2482.7,8.0]
[1747536522264,4.02665607,2483.5,2483.0,4.82630304]
[1747536522576,4.83198794,2483.7,2483.0,1.10044864]
[1747536522577,4.02674516,2483.4,2483.0,1.10044864]
[1747536522990,4.02674516,2483.4,2483.1,0.22621599]
[1747536523374,4.02664784,2483.5,2483.1,0.22621599]
[1747536523713,4.02654113,2483.6,2483.2,0.60828046]
[1747536524220,4.02632045,2483.7,2483.2,0.60828046]
[1747536524372,4.02632045,2483.7,2483.3,0.22621599]
[1747536524569,4.02646389,2483.6,2483.3,0.22621599]
[1747536524982,4.02646389,2483.6,2483.4,0.86318986]
[1747536525908,4.02633738,2483.7,2483.4,0.86318986]
[1747536526127,25.077,2484.0,2483.5,1.20356447]
[1747536526329,32.746,2484.0,2483.5,1.20356447]
[1747536526490,4.02602825,2483.9,2483.5,1.20356447]
[1747536526821,19.37284672,2484.0,2483.5,1.20356447]
[1747536527227,4.0259599,2483.9,2483.5,1.20356447]
[1747536527428,19.37284672,2484.0,2483.6,0.85166038]
[1747536528131,19.37284672,2484.0,2483.7,0.38206447]
[1747536528330,4.02595703,2483.9,2483.7,0.38206447]
[1747536529032,11.70378574,2484.0,2483.7,0.38206447]
[1747536529228,4.02606813,2483.9,2483.7,0.38206447]
[1747536529433,4.02606813,2483.9,2483.8,0.38206447]
[1747536530536,4.02606813,2483.9,2483.7,0.38206447]
[1747536530537,4.02608905,2483.8,2483.7,0.38206447]
[1747536530711,4.02608905,2483.8,2483.7,1.10659446]
[1747536531035,4.02601268,2483.9,2483.7,1.10659446]
[1747536531635,4.02601268,2483.9,2483.8,0.38206447]
[1747536532531,4.81481268,2483.9,2483.8,0.38206447]
[1747536533326,4.02625115,2483.7,2483.6,0.38206447]
[1747536534134,11.69625115,2483.7,2483.6,0.38206447]
[1747536534644,4.02641327,2483.6,2483.5,5.56061006]
[1747536535455,4.02641327,2483.6,2483.2,0.48112539]
[1747536535456,4.02666269,2483.5,2483.2,0.48112539]
[1747536535603,4.02666269,2483.5,2483.3,0.73306392]
[1747536536501,4.02666269,2483.5,2483.1,7.33063922]
[1747536537239,4.02666269,2483.5,2483.2,0.22467104]
[1747536537807,4.02666269,2483.5,2483.3,0.38349419]
[1747536539243,4.02666269,2483.5,2483.4,0.38349419]
[1747536540442,4.02666269,2483.5,2483.2,0.38349419]
[1747536540736,4.02679744,2483.4,2483.2,1.58778948]
[1747536541843,4.02679744,2483.4,2483.3,0.38349419]
[1747536543619,4.02679744,2483.4,2483.3,0.60852425]
[1747536546527,4.0260102,2483.9,2483.4,4.80285372]
[1747536546850,11.70377043,2484.0,2483.5,4.02654769]
[1747536547062,11.70377043,2484.0,2483.5,1.47736837]
[1747536547265,4.02603677,2483.9,2483.6,0.22524673]
[1747536547413,4.02568954,2484.1,2483.7,0.8189]
[1747536547719,4.02562067,2484.1,2483.7,0.8189]
[1747536547919,4.02562067,2484.1,2483.7,6.37951006]
[1747536548615,4.02562067,2484.1,2483.8,0.22540343]
[1747536548815,4.02562067,2484.1,2483.8,5.78601349]
[1747536548816,4.02591799,2484.0,2483.8,5.78601349]
[1747536549113,4.02591799,2484.0,2483.9,0.38349419]
[1747536549313,4.02591799,2484.0,2483.9,0.60889762]
[1747536550349,4.02538052,2484.3,2483.9,1.30773839]
[1747536550650,4.02537101,2484.3,2483.9,1.30773839]
[1747536550845,4.02553324,2484.2,2484.0,0.22540343]
[1747536551351,4.02560283,2484.1,2484.0,0.22540343]
[1747536551738,4.02560283,2484.1,2484.0,0.60889762]
[1747536556771,4.02560283,2484.1,2484.0,0.55953662]
[1747536565148,4.81570283,2484.1,2484.0,0.55953662]
[1747536566059,4.81570283,2484.1,2484.0,0.38349419]
[1747536566269,4.02603784,2483.9,2483.5,0.48161392]
[1747536566468,4.81570283,2484.1,2483.5,0.48161392]
[1747536566469,4.02641327,2483.6,2483.5,0.48161392]
[1747536567780,4.02641327,2483.6,2483.5,0.86691073]
[1747536569351,4.02641327,2483.6,2483.5,1.09268474]
[1747536570984,4.02641327,2483.6,2483.5,1.86468474]
[1747536571806,7.614,2484.2,2483.5,2.11547612]
[1747536572000,4.02591533,2484.0,2483.5,2.11547612]
[1747536572205,4.02592481,2484.0,2483.5,2.11547612]
[1747536572507,7.614,2484.2,2483.6,0.22577401]
[1747536572508,4.02623319,2483.8,2483.6,0.22577401]
[1747536573000,4.02623319,2483.8,2483.7,0.22577401]
[1747536573205,4.02623319,2483.8,2483.7,0.61107082]
[1747536574210,4.02623319,2483.8,2483.7,0.22577401]
[1747536574381,4.02625115,2483.7,2483.6,0.22577401]
[1747536574931,4.02623319,2483.8,2483.6,0.22577401]
[1747536574932,4.02616082,2483.8,2483.6,0.22577401]
[1747536575263,4.02616082,2483.8,2483.7,0.22577401]
[1747536575793,8.4277,2484.3,2483.7,0.22577401]
[1747536576098,4.02592939,2483.9,2483.7,1.09290686]
[1747536576307,4.02592939,2483.9,2483.8,0.22577401]
[1747536576877,4.02592939,2483.9,2483.7,0.86713285]
[1747536577311,4.02592939,2483.9,2483.8,0.38539238]
[1747536578606,4.02592939,2483.9,2483.8,0.6112769]
[1747536581693,4.02592939,2483.9,2483.8,1.09322116]
[1747536582897,4.79792939,2483.9,2483.8,1.09322116]
[1747536584195,4.79792939,2483.9,2483.8,0.86733664]
[1747536585003,4.79792939,2483.9,2483.8,0.38539238]
[1747536587199,12.38392939,2483.9,2483.8,0.38539238]
[1747536590035,20.38392939,2483.9,2483.8,0.38539238]
[1747536591499,20.38392939,2483.9,2483.2,0.48194426]
[1747536591728,4.02689968,2483.3,2483.2,0.48194426]
[1747536592039,11.61189968,2483.3,2483.2,0.48194426]
[1747536592640,11.61189968,2483.3,2483.2,0.70787068]
[1747536593139,11.61189968,2483.3,2483.2,1.09345737]
[1747536594212,19.21989968,2483.3,2483.2,1.09345737]
[1747536594413,19.21989968,2483.3,2483.2,0.38558669]
[1747536596620,0.7815,2483.9,2483.2,1.21438669]
[1747536596825,4.02645506,2483.6,2483.2,1.21438669]
[1747536597148,4.02633292,2483.7,2483.3,0.52415643]
[1747536597454,4.02619502,2483.8,2483.4,1.05452204]
[1747536597945,4.02619502,2483.8,2483.5,0.48194426]
[1747536598134,4.02634578,2483.7,2483.5,0.48194426]
[1747536598333,4.02634578,2483.7,2483.6,0.22572204]
[1747536598644,4.02614254,2483.8,2483.6,0.22572204]
[1747536598939,4.02614254,2483.8,2483.7,0.61130873]
[1747536599746,11.61001752,2483.9,2483.7,0.61130873]
[1747536600251,11.61001752,2483.9,2483.7,0.38558669]
[1747536600550,11.61001752,2483.9,2483.8,0.38558669]
[1747536600751,4.02601752,2483.9,2483.8,1.21438669]
[1747536601449,4.02585342,2484.0,2483.8,1.21438669]
[1747536601653,4.02592696,2483.9,2483.8,1.21438669]
[1747536601832,4.02592696,2483.9,2483.8,0.8288]
[1747536603059,4.02592696,2483.9,2483.8,1.21397952]
[1747536604754,4.02592696,2483.9,2483.8,0.38517952]
[1747536605856,4.83802696,2483.9,2483.8,0.38517952]
[1747536607466,4.02592696,2483.9,2483.8,0.38517952]
[1747536611285,4.02592696,2483.9,2483.8,0.38517952]
[1747536611684,4.02592696,2483.9,2483.5,0.48194426]
[1747536611884,4.02628243,2483.7,2483.3,1.25774426]
[1747536612089,4.02673753,2483.4,2483.3,1.25774426]
[1747536612889,4.02664133,2483.5,2483.3,1.86899663]
[1747536613063,4.02611608,2483.8,2483.3,2.12012836]
[1747536613268,4.02632062,2483.7,2483.3,2.12012836]
[1747536613767,4.02632062,2483.7,2483.4,0.22583007]
[1747536614389,4.02641657,2483.6,2483.4,0.22583007]
[1747536614577,4.02641657,2483.6,2483.5,0.86736656]
[1747536614766,4.02641657,2483.6,2483.5,1.09319663]
[1747536617390,4.02641657,2483.6,2483.5,0.61125237]
[1747536618797,11.5893016,2483.7,2483.5,0.82326521]
[1747536619163,11.5893016,2483.7,2483.6,0.3854223]
[1747536621106,11.5893016,2483.7,2483.6,0.61127759]
[1747536623598,4.0263016,2483.7,2483.6,0.61127759]
[1747536623786,11.63369323,2484.1,2483.7,0.7672]
[1747536624097,11.63369323,2484.1,2483.8,0.22585529]
[1747536624098,4.02576922,2484.0,2483.8,0.22585529]
[1747536625169,4.02576922,2484.0,2483.9,0.61127759]
[1747536627301,4.02576922,2484.0,2483.9,1.09322185]
[1747536627515,4.02576922,2484.0,2483.9,0.86736656]
[1747536628874,12.81146922,2484.0,2483.9,0.86736656]
[1747536630295,4.02657539,2483.5,2483.4,0.48194426]
[1747536630489,11.57757539,2483.5,2483.4,0.48194426]
[1747536630794,11.57757539,2483.5,2483.4,0.70801693]
[1747536631538,11.57757539,2483.5,2483.4,1.09384661]
[1747536633570,0.7857,2484.0,2483.4,1.34433931]
[1747536633726,4.57454514,2484.8,2483.5,0.7908]
[1747536633727,4.02604498,2483.9,2483.5,0.7908]
[1747536634249,4.02601436,2483.9,2483.6,0.38582968]
[1747536634604,4.02601436,2483.9,2483.7,0.22606865]
[1747536635470,11.57470391,2484.1,2483.7,0.69633084]
[1747536635758,4.02594494,2483.9,2483.7,0.69633084]
[1747536636109,4.02608905,2483.8,2483.7,0.69633084]
[1747536636509,4.02608905,2483.8,2483.7,1.30818809]
[1747536637204,4.02608905,2483.8,2483.7,1.30818335]
[1747536639035,4.02608905,2483.8,2483.7,1.79035378]
[1747536639333,4.02608905,2483.8,2483.7,1.09402294]
[1747536639937,4.02604507,2483.9,2483.7,1.09402294]
[1747536640141,4.02604507,2483.9,2483.8,0.22602283]
[1747536640519,4.02604507,2483.9,2483.8,0.61185251]
[1747536652480,4.02604507,2483.9,2483.8,1.09402294]
[1747536654483,4.02556693,2484.2,2483.9,0.8212]
[1747536654782,7.511,2484.2,2483.9,1.41534308]
[1747536655358,11.53644259,2484.2,2484.0,0.22602283]
[1747536656071,4.02560283,2484.1,2484.0,0.22602283]
[1747536656286,4.02560283,2484.1,2484.0,0.61185251]
[1747536657727,4.02560283,2484.1,2484.0,1.09402294]
[1747536658927,4.02560283,2484.1,2484.0,0.86800011]
[1747536660336,4.02560283,2484.1,2484.0,0.38582968]
[1747536661708,11.57160283,2484.1,2484.0,0.38582968]
[1747536662022,19.07460283,2484.1,2484.0,0.38582968]
[1747536662404,19.07460283,2484.1,2484.0,0.61186964]
[1747536665214,19.07460283,2484.1,2484.0,0.38582968]
[1747536668742,19.01460283,2484.1,2484.0,0.61197106]
[1747536672526,19.82900283,2484.1,2484.0,0.61197106]
[1747536673076,19.82900283,2484.1,2484.0,0.38582968]
[1747536673553,27.82900283,2484.1,2484.0,0.38582968]
[1747536674467,27.82900283,2484.1,2483.2,0.7586]
[1747536674468,4.02595787,2483.9,2483.4,0.48217043]
[1747536675133,4.02657539,2483.5,2483.4,0.48217043]
[1747536675669,4.02657539,2483.5,2483.4,0.8679851]
[1747536676077,4.02657539,2483.5,2483.4,1.09402317]
[1747536678731,4.82757539,2483.5,2483.4,1.09402317]
[1747536679043,4.82757539,2483.5,2483.4,0.8679851]
[1747536679975,4.02722403,2483.1,2483.0,0.48217043]
[1747536681067,4.02722403,2483.1,2483.0,0.86751442]
[1747536682231,4.02722403,2483.1,2483.0,0.38534399]
[1747536684466,11.51413947,2483.2,2483.0,0.38534399]
[1747536684673,4.02698524,2483.3,2483.0,0.38534399]
[1747536684838,7.487,2483.2,2483.0,0.38534399]
[1747536685033,7.487,2483.2,2483.1,0.38534399]
[1747536685657,4.02706185,2483.2,2483.1,0.38534399]
[1747536692595,11.50506185,2483.2,2483.1,0.38534399]
[1747536701200,4.0263875,2483.7,2483.1,1.19254399]
[1747536701403,8.8223,2483.8,2483.1,1.19254399]
[1747536701404,4.02704637,2483.3,2483.1,1.19254399]
[1747536701601,4.02668884,2483.5,2483.1,1.19254399]
[1747536701772,4.02682085,2483.4,2483.2,0.38534399]
[1747536703000,12.84846604,2483.8,2483.2,0.38534399]
[1747536703200,4.02680783,2483.4,2483.2,0.38534399]
[1747536703410,4.02689968,2483.3,2483.2,0.38534399]
[1747536705403,4.02689968,2483.3,2483.2,0.86751442]
[1747536708508,4.01511358,2483.3,2483.2,0.86751442]
[1747536718713,4.02681044,2483.4,2483.2,0.86751442]
[1747536718916,11.49881044,2483.4,2483.2,0.86751442]
[1747536719217,4.02681044,2483.4,2483.2,0.86751442]
[1747536719525,11.49881044,2483.4,2483.2,1.64821442]
[1747536720099,4.02689968,2483.3,2483.2,1.64821442]
[1747536720731,11.49879628,2483.4,2483.2,0.7807]
[1747536721230,4.02689968,2483.3,2483.2,0.7807]
[1747536721933,4.02689968,2483.3,2483.2,1.16672024]
[1747536722408,4.02689968,2483.3,2483.2,0.38602024]
[1747536724521,4.85999968,2483.3,2483.2,0.38602024]
[1747536725643,4.02689968,2483.3,2483.2,0.38602024]
[1747536726338,18.97089968,2483.3,2483.2,0.38602024]
[1747536727948,18.97089968,2483.3,2483.2,0.86858593]
[1747536731010,18.97089968,2483.3,2483.2,0.38602024]
[1747536736957,19.73149968,2483.3,2483.2,0.38602024]
[1747536737155,27.73149968,2483.3,2483.2,0.38602024]
[1747536737754,4.02706185,2483.2,2483.1,0.48256569]
[1747536737962,4.0272633,2483.1,2482.7,0.48256569]
[1747536738137,4.02771064,2482.8,2482.7,0.48256569]
[1747536738340,11.49971064,2482.8,2482.7,0.48256569]
[1747536739070,11.49971064,2482.8,2482.7,0.86846016]
[1747536740669,11.49971064,2482.8,2482.7,0.38589447]
[1747536752971,11.49971064,2482.8,2482.3,0.8225]
[1747536752972,4.02803512,2482.6,2482.3,0.8225]
[1747536754082,4.02831832,2482.5,2482.3,0.8225]
[1747536754582,4.02831832,2482.5,2482.4,0.3854636]
[1747536758984,7.472,2482.7,2482.4,0.3854636]
[1747536759188,11.50005281,2482.6,2482.4,0.3854636]
[1747536760063,11.50005281,2482.6,2482.5,0.3854636]
[1747536763001,11.50003512,2482.6,2482.5,0.3854636]
[1747536766901,4.02803512,2482.6,2482.5,0.86802929]
[1747536769904,4.02803512,2482.6,2482.5,0.3854636]
[1747536775000,11.49903512,2482.6,2482.5,1.1594636]
[1747536777282,11.49903512,2482.6,2482.5,1.64202929]
[1747536781922,12.28443512,2482.6,2482.5,0.86802929]
[1747536783422,12.28443512,2482.6,2482.5,0.3854636]
[1747536784698,20.25103512,2482.6,2482.5,0.3854636]
[1747536785921,4.02887509,2482.1,2481.9,0.48256569]
[1747536786124,11.49900886,2482.0,2481.9,0.48256569]
[1747536787291,11.49900886,2482.0,2481.9,0.86861291]
[1747536788494,4.02900886,2482.0,2481.9,0.86861291]
[1747536788695,11.49800886,2482.0,2481.9,1.10103626]
[1747536789640,11.49800886,2482.0,2481.9,0.38604722]
[1747536796146,12.28150886,2482.0,2481.9,0.38604722]
[1747536798543,4.02965828,2481.6,2481.5,0.7999]
[1747536799252,4.02957049,2481.7,2481.5,0.7999]
[1747536799433,4.02940347,2481.8,2481.5,0.7999]
[1747536799625,4.02940347,2481.8,2481.5,1.33115589]
[1747536799815,4.02949591,2481.7,2481.6,0.38531676]
[1747536800357,11.49849591,2481.7,2481.6,0.38531676]
[1747536801263,4.02949591,2481.7,2481.6,0.38531676]
[1747536801462,11.49849591,2481.7,2481.6,0.38531676]
[1747536804963,0.7835,2482.2,2481.6,0.38531676]
[1747536805166,11.49834442,2481.8,2481.6,0.38531676]
[1747536805470,4.02934442,2481.8,2481.6,0.38531676]
[1747536805761,11.49834442,2481.8,2481.6,0.38531676]
[1747536806262,4.02949591,2481.7,2481.6,0.38531676]
[1747536806857,11.49840157,2481.8,2481.6,0.38531676]
[1747536807030,7.469,2481.8,2481.6,0.38531676]
[1747536808454,11.4983518,2481.8,2481.6,0.38531676]
[1747536808653,4.0293518,2481.8,2481.6,0.38531676]
[1747536808976,11.4983518,2481.8,2481.6,1.10815601]
[1747536809872,4.02949591,2481.7,2481.6,1.10815601]
[1747536810278,4.02949591,2481.7,2481.6,0.38531676]
[1747536812243,11.49841647,2481.8,2481.6,0.38531676]
[1747536814275,7.469,2481.8,2481.6,0.38531676]
[1747536814457,7.468,2481.8,2481.6,0.38531676]
[1747536814658,11.49734661,2481.8,2481.6,0.38531676]
[1747536815579,11.49734661,2481.8,2481.7,0.38531676]
[1747536817179,11.49734661,2481.8,2481.7,0.86788245]
[1747536817773,4.02934661,2481.8,2481.7,0.86788245]
[1747536825272,4.02934661,2481.8,2481.7,0.38531676]
[1747536826065,5.05334925,2482.7,2481.8,0.7814]
[1747536826375,4.02861938,2482.3,2482.0,0.7814]
[1747536826578,4.0286882,2482.2,2482.0,0.7814]
[1747536826889,4.0286882,2482.2,2482.1,0.38531676]
[1747536828396,4.0286882,2482.2,2482.1,0.86811121]
[1747536829455,11.49450511,2482.4,2482.1,0.86811121]
[1747536830356,7.466,2482.4,2482.1,0.86811121]
[1747536830577,11.49438501,2482.4,2482.1,0.86811121]
[1747536831000,11.49438501,2482.4,2482.2,0.38531676]
[1747536831001,4.02852193,2482.3,2482.2,0.38531676]
[1747536831211,4.79612193,2482.3,2482.2,0.38531676]
[1747536832895,4.02884654,2482.1,2482.0,0.48279445]
[1747536834692,4.02884654,2482.1,2482.0,0.38608977]
[1747536839393,11.49584654,2482.1,2482.0,0.38608977]
[1747536840204,7.467,2482.1,2482.0,0.38608977]
[1747536840408,14.931,2482.1,2482.0,0.38608977]
[1747536840638,18.95984654,2482.1,2482.0,0.38608977]
[1747536840937,4.02884654,2482.1,2482.0,0.38608977]
[1747536841139,14.931,2482.1,2482.0,0.38608977]
[1747536841293,18.95984654,2482.1,2482.0,0.38608977]
[1747536842040,4.02884654,2482.1,2482.0,0.38608977]
[1747536842333,11.49284654,2482.1,2482.0,0.38608977]
[1747536842911,4.02884654,2482.1,2482.0,0.38608977]
[1747536843215,11.49284654,2482.1,2482.0,0.38608977]
[1747536843428,4.02884654,2482.1,2482.0,0.38608977]
[1747536843725,11.49284654,2482.1,2482.0,0.38608977]
[1747536843922,7.464,2482.1,2482.0,0.38608977]
[1747536847744,11.49284654,2482.1,2482.0,0.38608977]
[1747536852415,12.29684654,2482.1,2482.0,0.38608977]
[1747536856235,11.49284654,2482.1,2482.0,0.38608977]
[1747536858639,12.29684654,2482.1,2482.0,0.38608977]
[1747536860057,18.95384654,2482.1,2482.0,0.38608977]
[1747536863535,4.02884654,2482.1,2482.0,0.38608977]
[1747536863740,18.95284654,2482.1,2482.0,0.38608977]
[1747536877639,11.49184654,2482.1,2482.0,0.38608977]
[1747536877879,18.95184654,2482.1,2482.0,0.38608977]
[1747536878567,11.49184654,2482.1,2482.0,0.38608977]
[1747536878776,18.95084654,2482.1,2482.0,0.38608977]
[1747536879065,11.49184654,2482.1,2482.0,0.38608977]
[1747536879363,4.02884654,2482.1,2482.0,0.38608977]
[1747536879534,18.94784654,2482.1,2482.0,0.38608977]
[1747536880882,19.75404654,2482.1,2482.0,0.38608977]
[1747536883069,18.94784654,2482.1,2482.0,0.38608977]
[1747536889843,11.48884654,2482.1,2482.0,0.38608977]
[1747536890141,18.94684654,2482.1,2482.0,0.38608977]
[1747536892350,19.73824654,2482.1,2482.0,0.38608977]
[1747536899478,19.73724654,2482.1,2482.0,0.38608977]
[1747536902574,27.73724654,2482.1,2482.0,0.38608977]
[1747536903592,4.02936563,2481.8,2481.3,1.27069445]
[1747536903907,4.02936563,2481.8,2481.3,1.68893477]
[1747536904414,4.02998307,2481.4,2481.3,1.68893477]
[1747536904578,11.48698307,2481.4,2481.3,1.68893477]